bitfinex/quotes_BTCUSD_20250115
["timestamp","ask_amount","ask_price","bid_price","bid_amount"]
[1736950233028,1.65689296,99247.0,99246.0,0.2403214]
[1736950233208,1.66289296,99247.0,99246.0,0.13837751]
[1736950233418,1.65789296,99247.0,99246.0,0.11434542]
[1736950233661,1.17915696,99247.0,99246.0,0.11434542]
[1736950233871,0.96909004,99247.0,99246.0,0.11434542]
[1736950234207,0.48589904,99247.0,99246.0,0.11434542]
[1736950234558,0.27646004,99247.0,99246.0,0.11434542]
[1736950234742,0.27346004,99247.0,99246.0,0.11434542]
[1736950235112,0.27846004,99247.0,99246.0,0.11434542]
[1736950235435,0.26946004,99247.0,99246.0,0.11434542]
[1736950235674,0.27846004,99247.0,99246.0,0.11520072]
[1736950235799,0.26946004,99247.0,99246.0,0.11520072]
[1736950236247,0.26746004,99247.0,99246.0,0.11520072]
[1736950236453,0.26646004,99247.0,99246.0,0.11520072]
[1736950236655,0.35355934,99247.0,99246.0,0.11520072]
[1736950236872,0.26646004,99247.0,99246.0,0.11520072]
[1736950237070,0.26446004,99247.0,99246.0,0.11520072]
[1736950237710,0.28026768,99247.0,99246.0,0.11520072]
[1736950238078,0.26446004,99247.0,99246.0,0.11520072]
[1736950239234,0.403026,99249.0,99247.0,0.023]
[1736950239235,0.201513,99249.0,99247.0,0.023]
[1736950239446,0.1758556,99256.0,99247.0,0.023]
[1736950239447,0.18604045,99256.0,99247.0,0.5132]
[1736950239651,0.1758556,99256.0,99249.0,0.023]
[1736950239802,0.201501,99255.0,99251.0,0.023]
[1736950240004,0.01580661,99254.0,99251.0,0.51319]
[1736950240329,0.01580661,99254.0,99252.0,0.00234993]
[1736950240586,0.1758556,99256.0,99253.0,0.023]
[1736950240832,0.201481,99265.0,99253.0,0.023]
[1736950240833,0.201486,99262.0,99253.0,0.49018]
[1736950241033,0.201486,99262.0,99254.0,0.00234241]
[1736950241285,0.201486,99262.0,99254.0,0.49252241]
[1736950241694,0.201491,99260.0,99254.0,0.49252241]
[1736950242250,0.18787504,99263.0,99254.0,0.49252241]
[1736950242816,0.17765174,99263.0,99255.0,0.201501]
[1736950243023,0.00179614,99263.0,99257.0,0.201497]
[1736950243279,0.00179614,99263.0,99257.0,0.691667]
[1736950243438,0.00179614,99263.0,99258.0,0.00230402]
[1736950243645,0.00179614,99263.0,99258.0,0.49247402]
[1736950243841,0.00279614,99263.0,99258.0,0.49017]
[1736950244043,0.00179614,99263.0,99259.0,0.00230394]
[1736950244262,0.00179614,99263.0,99259.0,0.49246394]
[1736950244469,0.00179614,99263.0,99259.0,0.49016]
[1736950244806,0.00179614,99263.0,99260.0,0.00230387]
[1736950245030,0.00179614,99263.0,99260.0,0.49246387]
[1736950245462,0.00279614,99263.0,99260.0,0.49246387]
[1736950245886,0.00179614,99263.0,99260.0,0.49246387]
[1736950246058,0.00279614,99263.0,99260.0,0.49246387]
[1736950246302,0.30571292,99262.0,99260.0,0.49246387]
[1736950246511,1.009951,99261.0,99260.0,0.49246387]
[1736950246744,1.11417792,99261.0,99260.0,0.49016]
[1736950246930,0.61003484,99261.0,99260.0,0.49016]
[1736950247271,0.61003484,99261.0,99260.0,0.49236035]
[1736950247655,0.50580792,99261.0,99260.0,0.49236035]
[1736950247871,0.25422692,99261.0,99260.0,0.49236035]
[1736950248851,0.26222692,99261.0,99260.0,0.49236035]
[1736950249058,0.25422692,99261.0,99260.0,0.49236035]
[1736950249248,0.52595692,99261.0,99260.0,0.49236035]
[1736950249443,0.61902863,99261.0,99260.0,0.49236035]
[1736950249600,0.61602863,99261.0,99260.0,0.49236035]
[1736950250328,0.61902863,99261.0,99260.0,0.49236035]
[1736950250493,0.61702863,99261.0,99260.0,0.49236035]
[1736950250698,0.61402863,99261.0,99260.0,0.49236035]
[1736950251099,0.61702863,99261.0,99260.0,0.49236035]
[1736950251303,0.87551481,99261.0,99260.0,0.49236035]
[1736950251905,0.75251481,99261.0,99260.0,0.49236035]
[1736950252325,0.74502863,99261.0,99260.0,0.49236035]
[1736950252559,0.83706863,99261.0,99260.0,0.39161535]
[1736950252728,0.83806863,99261.0,99260.0,0.39161535]
[1736950252933,0.84706863,99261.0,99260.0,0.37146635]
[1736950253136,0.83706863,99261.0,99260.0,0.35131735]
[1736950253349,0.84606863,99261.0,99260.0,0.35131735]
[1736950253554,0.85206863,99261.0,99260.0,0.35131735]
[1736950253759,0.84306863,99261.0,99260.0,0.35131735]
[1736950253959,0.84606863,99261.0,99260.0,0.35131735]
[1736950254459,0.85006863,99261.0,99260.0,0.35131735]
[1736950254672,0.74980166,99261.0,99260.0,0.35131735]
[1736950254882,0.63372995,99261.0,99260.0,0.35131735]
[1736950255324,0.64531405,99261.0,99260.0,0.35131735]
[1736950255700,0.65031405,99261.0,99260.0,0.31208579]
[1736950255902,0.64131405,99261.0,99260.0,0.31208579]
[1736950256150,0.75854097,99261.0,99260.0,0.31208579]
[1736950256426,0.64954097,99261.0,99260.0,0.31208579]
[1736950256632,0.74554097,99261.0,99260.0,0.31208579]
[1736950256835,0.65431405,99261.0,99260.0,0.31208579]
[1736950257014,0.55431405,99261.0,99260.0,0.31208579]
[1736950257190,0.53372995,99261.0,99260.0,0.31208579]
[1736950257394,0.62072995,99261.0,99260.0,0.31208579]
[1736950257817,0.52072995,99261.0,99260.0,0.31208579]
[1736950257986,0.62495687,99261.0,99260.0,0.31208579]
[1736950258642,0.72495687,99261.0,99260.0,0.31208579]
[1736950258852,2.27030987,99261.0,99260.0,0.31208579]
[1736950259060,2.27930987,99261.0,99260.0,0.31208579]
[1736950259258,2.27030987,99261.0,99260.0,0.30988544]
[1736950259463,2.26630987,99261.0,99260.0,0.30988544]
[1736950259668,2.05908487,99261.0,99260.0,0.30988544]
[1736950259849,2.07089248,99261.0,99260.0,0.30988544]
[1736950260325,1.89485348,99261.0,99260.0,0.30988544]
[1736950260445,1.84185487,99261.0,99260.0,0.30988544]
[1736950260905,1.74185487,99261.0,99260.0,0.30988544]
[1736950261112,1.28354595,99261.0,99260.0,0.30988544]
[1736950261349,0.11526692,99261.0,99260.0,0.30988544]
[1736950261554,0.01104,99261.0,99260.0,0.30988544]
[1736950261960,4e-05,99261.0,99260.0,0.31213084]
[1736950262353,0.15756579,99261.0,99260.0,0.31213084]
[1736950262507,1.17603879,99261.0,99260.0,0.31213084]
[1736950262709,1.81833079,99261.0,99260.0,0.30988544]
[1736950263099,0.25426692,99261.0,99260.0,0.30988544]
[1736950263513,0.00304,99261.0,99260.0,0.31211344]
[1736950264035,0.135716,99261.0,99260.0,0.27940709]
[1736950264244,0.135716,99261.0,99260.0,0.19258032]
[1736950264665,0.62004292,99261.0,99260.0,0.19258032]
[1736950264880,1.12548984,99261.0,99260.0,0.19035232]
[1736950265099,0.97594584,99261.0,99260.0,0.19035232]
[1736950265324,0.97594584,99261.0,99260.0,0.11291076]
[1736950265534,0.58647484,99261.0,99260.0,0.08620177]
[1736950265739,0.72215084,99261.0,99260.0,0.08620177]
[1736950265945,0.71915084,99261.0,99260.0,0.08620177]
[1736950266149,0.72715084,99261.0,99260.0,0.08620177]
[1736950266351,0.72615084,99261.0,99260.0,0.08620177]
[1736950266563,0.71815084,99261.0,99260.0,0.08620177]
[1736950266774,0.59405592,99261.0,99260.0,0.08620177]
[1736950266992,0.45837992,99261.0,99260.0,0.08620177]
[1736950267195,0.25726692,99261.0,99260.0,0.08620177]
[1736950267398,0.26626692,99261.0,99260.0,0.08620177]
[1736950267601,0.64163292,99261.0,99260.0,0.08620177]
[1736950267806,0.62262492,99261.0,99260.0,0.08620177]
[1736950268026,0.26326692,99261.0,99260.0,0.08620177]
[1736950268243,0.00904,99261.0,99260.0,0.16340177]
[1736950268653,4e-05,99261.0,99260.0,0.16552518]
[1736950269065,0.00604,99261.0,99260.0,0.08832518]
[1736950269475,4e-05,99261.0,99260.0,0.08620177]
[1736950269682,0.00104,99261.0,99260.0,0.08620177]
[1736950269895,0.00204,99261.0,99260.0,0.08832518]
[1736950270102,0.05772001,99261.0,99260.0,0.08620177]
[1736950270311,0.05772001,99261.0,99260.0,0.02316395]
[1736950270312,0.00104,99261.0,99260.0,0.02316395]
[1736950270517,0.402982,99260.0,99248.0,0.02968258]
[1736950270718,0.201497,99257.0,99248.0,0.03041134]
[1736950270895,0.201509,99252.0,99248.0,0.03041134]
[1736950271030,0.201509,99251.0,99248.0,0.03041134]
[1736950271290,0.201509,99251.0,99248.0,0.00072876]
[1736950271526,0.403018,99251.0,99248.0,0.00072876]
[1736950271782,0.403018,99251.0,99246.0,0.0008553]
[1736950271783,0.201513,99249.0,99246.0,0.0008553]
[1736950272218,0.351517,99247.0,99246.0,0.0008553]
[1736950272413,0.45574392,99247.0,99246.0,0.0008553]
[1736950273256,0.351517,99247.0,99246.0,0.0008553]
[1736950273640,0.15,99247.0,99246.0,0.0008553]
[1736950273855,0.159,99247.0,99246.0,0.0008553]
[1736950274247,0.15,99247.0,99246.0,0.0008553]
[1736950274677,0.16007048,99247.0,99246.0,0.0008553]
[1736950275057,0.15,99247.0,99246.0,0.0008553]
[1736950275843,0.152,99247.0,99246.0,0.0008553]
[1736950276285,0.15,99247.0,99246.0,0.0008553]
[1736950276483,0.15,99247.0,99246.0,0.00280355]
[1736950276700,0.00183634,99261.0,99246.0,0.0008553]
[1736950276903,0.17581013,99260.0,99246.0,0.00280355]
[1736950277277,0.201493,99259.0,99246.0,0.00280355]
[1736950277484,0.00183634,99261.0,99247.0,0.201517]
[1736950277687,0.00183634,99261.0,99253.0,0.0476]
[1736950277885,0.0121202,99261.0,99254.0,0.201503]
[1736950278098,0.00183634,99261.0,99254.0,0.00194766]
[1736950278305,0.00183634,99261.0,99255.0,0.201501]
[1736950278708,0.00183634,99261.0,99256.0,0.00193401]
[1736950278924,0.00283634,99261.0,99256.0,0.00193401]
[1736950279333,0.00183634,99261.0,99256.0,0.00193401]
[1736950280042,0.01580434,99260.0,99256.0,0.00193401]
[1736950280417,0.00283634,99261.0,99256.0,0.00193401]
[1736950281131,0.00283634,99261.0,99253.0,0.04832876]
[1736950281290,0.00283634,99261.0,99257.0,0.00192253]
[1736950281492,0.201491,99260.0,99253.0,0.0476]
[1736950282330,0.00183634,99261.0,99253.0,0.0476]
[1736950282507,0.001,99260.0,99254.0,0.00100742]
[1736950282739,0.00183634,99261.0,99255.0,0.201501]
[1736950282966,0.00183634,99261.0,99257.0,0.201497]
[1736950283166,0.00183634,99261.0,99258.0,0.00100734]
[1736950283452,0.00183634,99261.0,99259.0,0.201493]
[1736950283648,0.00183634,99261.0,99257.0,0.201497]
[1736950283863,0.001,99260.0,99257.0,0.201497]
[1736950284031,0.00179655,99260.0,99257.0,0.402994]
[1736950284597,0.00179655,99260.0,99254.0,0.20223076]
[1736950284790,0.00179655,99260.0,99254.0,0.00072876]
[1736950284991,0.00179655,99260.0,99255.0,0.201501]
[1736950285201,0.00179655,99260.0,99254.0,0.00072876]
[1736950285394,0.00179655,99260.0,99253.0,0.249104]
[1736950286199,0.00179655,99260.0,99259.0,0.201493]
[1736950286440,0.00179655,99260.0,99253.0,0.0476]
[1736950286840,0.00179655,99260.0,99254.0,0.201503]
[1736950287044,0.00279655,99260.0,99254.0,0.403006]
[1736950287249,0.00279655,99260.0,99253.0,0.0476]
[1736950287456,0.00279655,99260.0,99254.0,0.201503]
[1736950287657,0.00279655,99260.0,99253.0,0.0476]
[1736950287862,0.00279655,99260.0,99246.0,0.00158406]
[1736950288137,0.11715522,99256.0,99246.0,0.00158406]
[1736950288340,0.201512,99250.0,99246.0,0.00158406]
[1736950288548,0.201503,99254.0,99246.0,0.00158406]
[1736950288750,0.201503,99254.0,99246.0,0.0008553]
[1736950288969,0.201512,99250.0,99246.0,0.0008553]
[1736950289177,0.201511,99250.0,99246.0,0.0008553]
[1736950289380,0.201503,99254.0,99246.0,0.0008553]
[1736950290184,0.201515,99248.0,99246.0,0.0008553]
[1736950291001,0.01117381,99254.0,99246.0,0.0008553]
[1736950291619,0.01117381,99254.0,99247.0,0.00286656]
[1736950291795,0.01017381,99254.0,99247.0,0.00286656]
[1736950292002,0.15,99256.0,99247.0,0.00286656]
[1736950292182,0.001,99248.0,99247.0,0.00286656]
[1736950292782,0.001,99248.0,99246.0,0.00158406]
[1736950293016,0.15,99257.0,99247.0,0.00286656]
[1736950293220,0.15,99257.0,99247.0,0.20438356]
[1736950293221,0.001,99256.0,99247.0,0.20438356]
[1736950293418,0.11895177,99260.0,99247.0,0.20438356]
[1736950293419,0.00179655,99260.0,99249.0,0.201513]
[1736950293619,0.00179655,99260.0,99252.0,0.0784]
[1736950293793,0.00179655,99260.0,99257.0,0.201496]
[1736950294070,0.00179655,99260.0,99259.0,0.201493]
[1736950294253,0.01191027,99260.0,99259.0,0.30571992]
[1736950294455,0.01191027,99260.0,99259.0,0.5085813]
[1736950294639,0.00179655,99260.0,99259.0,0.8115813]
[1736950294839,0.00183634,99261.0,99260.0,0.3059]
[1736950295171,0.00183634,99261.0,99260.0,0.4129848]
[1736950295420,0.00183634,99261.0,99260.0,0.3129848]
[1736950295621,0.00183634,99261.0,99260.0,0.2899848]
[1736950295933,0.00283634,99261.0,99260.0,0.1899848]
[1736950296309,0.00183634,99261.0,99260.0,0.00285788]
[1736950296520,0.00283634,99261.0,99260.0,0.00285788]
[1736950296688,0.00383634,99261.0,99260.0,0.001]
[1736950296898,0.00053634,99261.0,99260.0,0.30955337]
[1736950297256,0.11715522,99270.0,99260.0,0.201491]
[1736950297583,0.201465,99273.0,99260.0,0.40678808]
[1736950297842,0.11715522,99270.0,99260.0,0.40678808]
[1736950298112,0.201463,99274.0,99260.0,0.40678808]
[1736950298328,0.11715522,99270.0,99260.0,0.40678808]
[1736950298553,0.001,99261.0,99260.0,0.40878808]
[1736950298756,0.11715522,99270.0,99260.0,0.40578808]
[1736950299223,0.00279614,99263.0,99260.0,0.40978808]
[1736950299462,0.00279614,99263.0,99262.0,0.201486]
[1736950299463,0.00179614,99263.0,99262.0,0.201486]
[1736950299693,0.00179614,99263.0,99262.0,0.58861292]
[1736950299943,0.00179614,99263.0,99262.0,0.66175935]
[1736950300413,0.00279614,99263.0,99262.0,0.66175935]
[1736950301397,0.201408,99301.0,99284.0,0.201441]
[1736950301641,0.11730454,99290.0,99281.0,0.201448]
[1736950301863,0.11730454,99290.0,99285.0,0.00304348]
[1736950302101,0.11730454,99290.0,99281.0,0.00072876]
[1736950302326,0.11730454,99290.0,99281.0,0.00036115]
[1736950302549,0.11730454,99290.0,99282.0,0.00304387]
[1736950303007,0.11830454,99290.0,99284.0,0.001]
[1736950303227,0.201432,99289.0,99284.0,0.001]
[1736950303425,0.201432,99289.0,99285.0,0.00304348]
[1736950303633,0.201432,99289.0,99281.0,0.002]
[1736950303985,0.00014932,99290.0,99281.0,0.002]
[1736950304175,0.201432,99289.0,99282.0,0.00304387]
[1736950304595,0.201432,99289.0,99281.0,0.002]
[1736950304797,0.201432,99289.0,99283.0,0.00304374]
[1736950305055,0.201432,99289.0,99282.0,0.00304387]
[1736950305227,0.201432,99289.0,99284.0,0.00304361]
[1736950305429,0.20144,99286.0,99283.0,0.00304374]
[1736950305637,0.201447,99282.0,99277.0,0.00036115]
[1736950305852,0.201454,99278.0,99277.0,0.00036115]
[1736950306218,0.351454,99278.0,99277.0,0.00036115]
[1736950306409,0.0814,99265.0,99251.0,0.00036115]
[1736950306614,0.15,99261.0,99251.0,0.00036115]
[1736950307044,0.402998,99256.0,99251.0,0.00036115]
[1736950307398,0.201494,99259.0,99251.0,0.00036115]
[1736950307538,0.201502,99255.0,99244.0,0.201521]
[1736950307739,0.201494,99259.0,99247.0,0.20431591]
[1736950308183,0.21180531,99259.0,99247.0,0.00279891]
[1736950308806,4e-05,99256.0,99247.0,0.00279891]
[1736950309051,4e-05,99256.0,99248.0,0.201514]
[1736950309259,4e-05,99256.0,99248.0,0.20433462]
[1736950309441,4e-05,99256.0,99251.0,0.001]
[1736950309897,4e-05,99256.0,99252.0,0.0028201]
[1736950310273,4e-05,99256.0,99248.0,0.20187515]
[1736950310482,4e-05,99256.0,99248.0,0.00036115]
[1736950310677,4e-05,99256.0,99249.0,0.00262981]
[1736950311041,0.00104,99256.0,99247.0,0.00136115]
[1736950311253,0.00104,99256.0,99250.0,0.00262365]
[1736950311449,0.00104,99256.0,99247.0,0.00136115]
[1736950311693,0.00104,99256.0,99251.0,0.00262352]
[1736950311900,0.00104,99256.0,99246.0,0.00621645]
[1736950312128,0.403022,99250.0,99246.0,0.00621645]
[1736950312275,0.403022,99250.0,99247.0,0.00262403]
[1736950312446,0.403022,99250.0,99246.0,0.00621645]
[1736950312646,0.403022,99250.0,99246.0,0.0058553]
[1736950314847,0.201515,99248.0,99246.0,0.0058553]
[1736950315041,0.33280331,99247.0,99246.0,0.0058553]
[1736950315245,0.48747331,99247.0,99246.0,0.0068553]
[1736950315878,0.15,99247.0,99246.0,0.0068553]
[1736950316051,0.154,99247.0,99246.0,0.0058553]
[1736950316456,0.151,99247.0,99246.0,0.0058553]
[1736950316685,0.157,99247.0,99246.0,0.0058553]
[1736950317107,0.15,99247.0,99246.0,0.0058553]
[1736950317529,0.27722692,99247.0,99246.0,0.0058553]
[1736950317850,0.4808046,99247.0,99246.0,0.0058553]
[1736950318650,0.4818046,99247.0,99246.0,0.0058553]
[1736950319225,0.4206256,99247.0,99246.0,0.0058553]
[1736950319654,0.4196256,99247.0,99246.0,0.0058553]
[1736950319976,0.4246256,99247.0,99246.0,0.0058553]
[1736950320175,0.29739868,99247.0,99246.0,0.0058553]
[1736950320385,0.44687692,99247.0,99246.0,0.0058553]
[1736950320777,0.44187692,99247.0,99246.0,0.0058553]
[1736950320955,0.46487692,99247.0,99246.0,0.0058553]
[1736950321771,0.56910384,99247.0,99246.0,0.0058553]
[1736950322181,0.57410384,99247.0,99246.0,0.0058553]
[1736950322365,0.57010384,99247.0,99246.0,0.0058553]
[1736950322770,0.57310384,99247.0,99246.0,0.0058553]
[1736950322975,0.46587692,99247.0,99246.0,0.0058553]
[1736950323388,0.46987692,99247.0,99246.0,0.0058553]
[1736950323590,0.46487692,99247.0,99246.0,0.0058553]
[1736950323791,0.46587692,99247.0,99246.0,0.0058553]
[1736950324041,0.46887692,99247.0,99246.0,0.0058553]
[1736950324391,0.57310384,99247.0,99246.0,0.0058553]
[1736950324846,0.004,99247.0,99246.0,0.0058553]
[1736950325255,0.003,99247.0,99246.0,0.00839702]
[1736950325471,0.004,99247.0,99246.0,0.00839702]
[1736950325678,0.004,99247.0,99246.0,0.00940446]
[1736950325887,0.004,99247.0,99246.0,0.11363138]
[1736950326303,0.001,99247.0,99246.0,0.11363138]
[1736950326507,4e-05,99256.0,99255.0,0.201501]
[1736950326710,4e-05,99256.0,99255.0,0.38943516]
[1736950326914,4e-05,99256.0,99255.0,0.43659606]
[1736950327336,4e-05,99256.0,99255.0,0.63659606]
[1736950328868,0.00104,99256.0,99255.0,0.78659606]
[1736950329070,4e-05,99256.0,99255.0,0.80959606]
[1736950329280,4e-05,99256.0,99255.0,0.74159606]
[1736950329499,0.00183655,99289.0,99288.0,0.201434]
[1736950329706,0.00198587,99289.0,99288.0,0.201434]
[1736950329904,0.00198587,99289.0,99288.0,0.20391551]
[1736950332144,0.00298587,99289.0,99288.0,0.00248151]
[1736950332286,0.00298587,99289.0,99288.0,0.00348151]
[1736950332488,0.00298587,99289.0,99288.0,0.001]
[1736950332693,0.00298587,99289.0,99288.0,0.00340016]
[1736950332888,0.00294587,99289.0,99288.0,0.001]
[1736950333088,0.00288587,99289.0,99288.0,0.001]
[1736950333944,0.00288587,99289.0,99288.0,0.00340025]
[1736950334148,0.00288587,99289.0,99288.0,0.001]
[1736950334349,0.00288587,99289.0,99288.0,0.00340025]
[1736950334583,0.00288587,99289.0,99288.0,0.001]
[1736950334727,0.00288587,99289.0,99288.0,0.00340025]
[1736950337870,0.00288587,99289.0,99288.0,0.001]
[1736950339646,0.01868572,99289.0,99288.0,0.001]
[1736950340088,0.15,99288.0,99264.0,0.00036115]
[1736950340302,0.201463,99274.0,99264.0,0.00036115]
[1736950340523,0.00288587,99289.0,99266.0,0.1]
[1736950340733,0.01277208,99289.0,99272.0,0.1]
[1736950340933,0.00288587,99289.0,99273.0,0.10422692]
[1736950341140,0.201434,99288.0,99273.0,0.10664119]
[1736950341523,0.201434,99288.0,99274.0,0.201462]
[1736950341839,0.201434,99288.0,99274.0,0.30568892]
[1736950342000,0.201434,99288.0,99275.0,0.00241401]
[1736950342220,0.00288587,99289.0,99275.0,0.00241401]
[1736950342221,0.00188587,99289.0,99275.0,0.00241401]
[1736950342430,0.001,99288.0,99280.0,0.20145]
[1736950342631,0.00188587,99289.0,99280.0,0.20145]
[1736950343183,0.00188587,99289.0,99281.0,0.00241324]
[1736950343184,0.001,99288.0,99281.0,0.00241324]
[1736950343419,0.00188587,99289.0,99281.0,0.00241324]
[1736950343595,0.202434,99288.0,99277.0,0.00036115]
[1736950343820,0.201443,99284.0,99282.0,0.00241311]
[1736950344023,0.201436,99287.0,99277.0,0.00036115]
[1736950344024,0.201454,99279.0,99277.0,0.00036115]
[1736950344240,0.25422692,99278.0,99277.0,0.00036115]
[1736950344607,0.15,99276.0,99244.0,0.201523]
[1736950344807,0.201498,99257.0,99247.0,0.201517]
[1736950345017,0.201498,99257.0,99244.0,0.201523]
[1736950345691,0.201498,99257.0,99244.0,0.20188415]
[1736950345901,0.31864622,99260.0,99247.0,0.201517]
[1736950346116,0.201491,99260.0,99247.0,0.201517]
[1736950346629,0.001,99257.0,99247.0,0.201517]
[1736950346835,0.15,99262.0,99251.0,0.201508]
[1736950347036,0.01023783,99267.0,99252.0,0.00100741]
[1736950347240,0.11715522,99270.0,99253.0,0.201503]
[1736950347241,0.201478,99266.0,99253.0,0.201503]
[1736950347674,0.11715522,99270.0,99252.0,0.201506]
[1736950347889,0.201485,99263.0,99252.0,0.201506]
[1736950348650,0.11715522,99270.0,99247.0,0.00036115]
[1736950348651,0.201491,99260.0,99247.0,0.00036115]
[1736950348870,0.201491,99260.0,99248.0,0.20187415]
[1736950349059,0.11715522,99262.0,99248.0,0.00036115]
[1736950349060,0.201493,99259.0,99248.0,0.00036115]
[1736950349281,0.201493,99259.0,99252.0,0.001]
[1736950349624,0.201493,99259.0,99246.0,0.00621645]
[1736950349845,0.201502,99255.0,99247.0,0.001]
[1736950350256,0.11715522,99262.0,99247.0,0.001]
[1736950350257,0.201509,99251.0,99247.0,0.001]
[1736950350662,0.201509,99251.0,99246.0,0.00621645]
[1736950350857,0.201513,99249.0,99246.0,0.0058553]
[1736950350992,0.20136438,99249.0,99248.0,0.001]
[1736950351411,0.201506,99253.0,99248.0,0.001]
[1736950351614,0.201501,99255.0,99248.0,0.001]
[1736950351817,0.201501,99255.0,99249.0,0.00248587]
[1736950352157,0.201511,99251.0,99246.0,0.00621645]
[1736950352579,0.201511,99251.0,99246.0,0.00721645]
[1736950352783,0.403022,99251.0,99246.0,0.00721645]
[1736950352994,0.403022,99251.0,99246.0,0.0058553]
[1736950353383,0.403022,99251.0,99249.0,0.001]
[1736950353783,0.403022,99251.0,99246.0,0.0058553]
[1736950353986,0.404022,99251.0,99246.0,0.0058553]
[1736950354150,0.404022,99251.0,99246.0,0.0068553]
[1736950354346,0.404022,99251.0,99248.0,0.0008546]
[1736950355201,0.201511,99251.0,99248.0,0.0008546]
[1736950356009,0.15,99253.0,99248.0,0.0008546]
[1736950356250,0.15,99253.0,99249.0,0.001]
[1736950356637,0.201507,99252.0,99248.0,0.00121575]
[1736950356836,0.23797387,99251.0,99248.0,0.00121575]
[1736950357036,0.202509,99251.0,99246.0,0.00307105]
[1736950357241,0.201513,99249.0,99246.0,0.00307105]
[1736950357680,0.403026,99249.0,99246.0,0.00307105]
[1736950358260,0.15,99254.0,99246.0,0.00307105]
[1736950358465,0.15,99254.0,99247.0,0.00250072]
[1736950358689,0.15,99254.0,99249.0,0.001]
[1736950359471,0.12726962,99260.0,99246.0,0.00379973]
[1736950359472,0.201503,99255.0,99246.0,0.00379973]
[1736950359873,0.201503,99255.0,99250.0,0.00250851]
[1736950360087,0.20151,99251.0,99246.0,0.00307105]
[1736950360671,0.40302,99251.0,99246.0,0.00307105]
[1736950361066,0.403026,99249.0,99246.0,0.00307105]
[1736950362482,0.403026,99249.0,99247.0,0.001]
[1736950363130,0.403026,99249.0,99246.0,0.00379973]
[1736950363131,0.15,99248.0,99246.0,0.00379973]
[1736950363335,0.15,99248.0,99246.0,0.00479973]
[1736950363336,0.351517,99247.0,99246.0,0.00479973]
[1736950363538,0.45574392,99247.0,99246.0,0.00479973]
[1736950363710,0.45574392,99247.0,99246.0,0.00407105]
[1736950364049,0.45574392,99247.0,99246.0,0.00307105]
[1736950364378,0.54928061,99247.0,99246.0,0.00307105]
[1736950364580,0.45574392,99247.0,99246.0,0.00307105]
[1736950366617,0.76906292,99247.0,99246.0,0.00392605]
[1736950367190,0.76906292,99247.0,99224.0,0.09775503]
[1736950367191,0.34375522,99234.0,99224.0,0.09775503]
[1736950367405,0.351562,99225.0,99224.0,0.09775503]
[1736950367619,0.201562,99225.0,99224.0,0.09790399]
[1736950369468,0.46588795,99225.0,99224.0,0.09790399]
[1736950369669,0.46588795,99225.0,99224.0,0.09890399]
[1736950369932,0.54498795,99225.0,99224.0,0.09890399]
[1736950370133,0.54598795,99225.0,99224.0,0.09790399]
[1736950370346,0.54498795,99225.0,99224.0,0.09790399]
[1736950370759,0.61964195,99225.0,99224.0,0.09790399]
[1736950370961,0.54498795,99225.0,99224.0,0.09790399]
[1736950371199,0.54798795,99225.0,99224.0,0.09790399]
[1736950372683,0.54498795,99225.0,99224.0,0.09790399]
[1736950372887,0.54798795,99225.0,99224.0,0.09790399]
[1736950373269,0.351566,99223.0,99222.0,1.54552916]
[1736950373470,1.8573491,99223.0,99222.0,1.45531982]
[1736950373673,1.9875681,99223.0,99222.0,1.45531982]
[1736950373892,1.8315351,99223.0,99222.0,1.45531982]
[1736950374047,1.7988441,99223.0,99222.0,1.45531982]
[1736950374252,1.90307102,99223.0,99222.0,1.43516282]
[1736950374481,1.98530202,99223.0,99222.0,1.35453482]
[1736950375084,2.01314335,99223.0,99222.0,1.08057352]
[1736950375303,2.01314335,99223.0,99222.0,0.77764071]
[1736950375511,1.98530202,99223.0,99222.0,0.52801564]
[1736950375695,1.98530202,99223.0,99222.0,0.22508283]
[1736950375933,1.98530202,99223.0,99205.0,0.00158279]
[1736950375934,0.1,99214.0,99205.0,0.00158279]
[1736950376148,0.01159742,99184.0,99161.0,0.023]
[1736950376322,0.11715522,99180.0,99146.0,0.08925718]
[1736950376577,0.01159742,99168.0,99155.0,0.00072874]
[1736950376798,0.201702,99156.0,99155.0,0.00072874]
[1736950377466,0.21329942,99156.0,99155.0,0.00122801]
[1736950377790,0.21329942,99156.0,99155.0,0.00049927]
[1736950378237,0.47746115,99156.0,99155.0,0.00049927]
[1736950378442,0.98953015,99156.0,99155.0,0.00049927]
[1736950378644,0.65713715,99156.0,99155.0,0.00049927]
[1736950379281,0.65813715,99156.0,99155.0,0.00049927]
[1736950379549,0.1965,99155.0,99153.0,0.00158354]
[1736950379795,0.67175726,99154.0,99153.0,0.00035553]
[1736950379991,1.74068326,99154.0,99153.0,0.00035553]
[1736950380209,1.50640326,99154.0,99153.0,0.00035553]
[1736950380520,1.27390134,99154.0,99153.0,0.00035553]
[1736950380722,1.12336534,99154.0,99153.0,0.00035553]
[1736950380951,0.01159742,99154.0,99153.0,0.00035553]
[1736950381195,0.11582434,99154.0,99153.0,0.00035553]
[1736950381655,0.65082034,99154.0,99153.0,0.00035553]
[1736950381861,0.65082034,99154.0,99148.0,0.00158304]
[1736950381862,0.01159742,99149.0,99148.0,0.00158304]
[1736950382065,0.36159742,99146.0,99145.0,0.02571002]
[1736950382280,0.36159742,99146.0,99131.0,0.00017]
[1736950382281,0.01159742,99132.0,99131.0,0.00017]
[1736950382632,0.0086679,99119.0,99118.0,0.12567683]
[1736950382830,0.46467182,99119.0,99118.0,0.12575746]
[1736950383046,0.46467182,99119.0,99118.0,0.12854533]
[1736950383189,0.46467182,99119.0,99118.0,0.12575746]
[1736950383551,0.45600392,99119.0,99118.0,0.12575746]
[1736950383715,0.3604449,99119.0,99118.0,0.12502861]
[1736950383893,0.15,99119.0,99118.0,0.12781648]
[1736950384116,0.1616679,99119.0,99118.0,0.12781648]
[1736950384510,0.1616679,99119.0,99118.0,0.12502861]
[1736950384704,0.26589482,99119.0,99118.0,0.12502861]
[1736950384913,0.1616679,99119.0,99118.0,0.12502861]
[1736950385110,0.1586679,99119.0,99118.0,0.12502861]
[1736950385350,0.1596679,99119.0,99118.0,0.12502861]
[1736950385569,0.002,99119.0,99118.0,0.12502861]
[1736950385781,0.15,99124.0,99118.0,0.12502861]
[1736950385978,0.15,99124.0,99119.0,0.023]
[1736950386173,0.201756,99130.0,99119.0,0.023]
[1736950386621,0.15,99129.0,99121.0,0.023]
[1736950386827,0.201759,99128.0,99121.0,0.023]
[1736950387172,0.201759,99128.0,99118.0,0.12575746]